[Event "1.FrauenBL 2016-17"]
[Site "Berlin"]
[Date "2017.04.29"]
[Round "11.9"]
[White "Spiel, Marianne"]
[Black "Rapport, Jovana"]
[Result "0-1"]
[ECO "B02"]
[WhiteElo "1921"]
[BlackElo "2334"]
[Annotator "ChessBase"]
[PlyCount "60"]
[EventDate "2017.??.??"]
[EventType "team-tourn"]
[EventCountry "GER"]
[SourceTitle "playchess.com"]
[Source "ChessBase"]
[SourceQuality "1"]
[WhiteTeam "FC Bayern München"]
[BlackTeam "SK Schwäbisch Hall"]
[TimeControl "40/6000+30:3000+30"]

1. e4 {[%emt 1:30:26]} g6 {[%emt 1:30:22]} 2. d4 {[%emt 1:30:22]} Nf6 {[%emt 1:30:47]} 3. Nc3 {[%emt 1:30:43]} d5 {[%emt 1:31:12]} 4. exd5 {[%emt 1:23:46]} Nxd5 {[%emt 1:23:46]} 5. Nf3 {[%emt 1:23:36]} Nxc3 {[%emt 1:31:23]} 6. bxc3 {[%emt 1:23:56]} Bg7 {[%emt 1:31:51]} 7. Be2 {[%emt 1:14:39]} c5 {[%emt 1:30:35]} 8. O-O {[%emt 1:09:46]} O-O {[%emt 1:30:39]} 9. Be3 {[%emt 1:05:18]} Nd7 {[%emt 1:27:17]} 10. Qd2 {[%emt 1:27:17]} Nf6 {[%emt 1:02:23]} 11. Rfd1 {[%emt 1:23:34]} Ne4 {[%emt 1:23:29]} 12. Qd3 {[%emt 0:55:56]} Bf5 {[%emt 1:22:28]} 13. Qc4 {[%emt 1:22:28]} b5 {[%emt 0:54:24]} 14. Qb3 {[%emt 0:46:42]} c4 {[%emt 0:46:42]} 15. Qb2 {[%emt 1:14:05]} Qa5 {[%emt 1:12:28]} 16. Bd2 {[%emt 0:30:32]} Qa4 {[%emt 1:08:52]} 17. Be1 {[%emt 1:08:52]} Rfd8 {[%emt 1:03:35]} 18. Nh4 {[%emt 0:15:00]} Be6 {[%emt 0:15:00]} 19. g3 {[%emt 1:03:53]} Bd5 {[%emt 0:56:50]} 20. Ng2 {[%emt 0:09:46]} Ng5 {[%emt 0:57:05]} 21. Nh4 {[%emt 0:08:08]} Be4 {[%emt 0:08:08]} 22. Rac1 {[%emt 0:07:58]} Qa6 {[%emt 0:45:43]} 23. Bd2 {[%emt 0:04:59]} Qf6 {[%emt 0:40:32]} 24. f4 {[%emt 0:02:11]} Nh3+ {[%emt 0:40:17]} 25. Kf1 {[%emt 0:02:18]} g5 {[%emt 0:32:05]} 26. Ng2 {[%emt 0:02:23]} Qc6 {[%emt 0:31:33]} 27. Ne1 {[%emt 0:01:58]} gxf4 {[%emt 0:30:46]} 28. Bg4 {[%emt 0:00:47]} fxg3 {[%emt 0:30:46]} 29. hxg3 {[%emt 0:00:54]} Qf6+ {[%emt 0:31:00]} 30. Ke2 {[%emt 0:31:00]} Qf2# {[%emt 0:31:23]} 0-1

[Event "1.FrauenBL 2016-17"]
[Site "Berlin"]
[Date "2017.04.29"]
[Round "11.10"]
[White "Straub, Natalia"]
[Black "Horvath, Miklosne"]
[Result "1-0"]
[ECO "D11"]
[WhiteElo "2188"]
[BlackElo "2130"]
[Annotator "NA"]
[PlyCount "123"]
[EventDate "2017.??.??"]
[EventType "team-tourn"]
[EventCountry "GER"]
[SourceTitle "playchess.com"]
[Source "ChessBase"]
[SourceQuality "1"]
[WhiteTeam "SF Deizisau"]
[BlackTeam "SG Augsburg"]
[TimeControl "40/6000+30:3000+30"]

1. d4 {[%emt 1:30:28]} d5 {[%emt 1:30:22]} 2. c4 {[%emt 1:30:32]} c6 {[%emt 1:30:17]} 3. Nf3 {[%emt 1:30:17]} Nf6 {[%emt 1:30:06]} 4. Qc2 {[%emt 1:30:30]} g6 {[%emt 1:30:30]} 5. Bf4 {[%emt 1:29:25]} Bf5 {[%emt 1:27:26]} 6. Qb3 {[%emt 1:28:52]} Qb6 {[%emt 1:19:47]} 7. c5 {[%emt 1:24:01]} Qxb3 {[%emt 1:24:01]} 8. axb3 {[%emt 1:23:39]} Nbd7 {[%emt 1:23:39]} 9. Nc3 {[%emt 1:19:32] D11: Slav Defence: 3 Nf3 sidelines and 3...Nf6 4 e3 Bg4} a6 {[%emt 1:09:54]} 10. h3 {[%emt 1:09:54]} h5 {[%emt 1:05:48]} 11. e3 {[%emt 1:14:02]} Bg7 {[%emt 1:04:50]} 12. b4 {[%emt 1:05:07]} O-O {[%emt 1:02:42] LiveBook: 3 Games} 13. Nh4 $146 {[%emt 1:02:42]} (13. Be2 Rfe8 14. O-O Ne4 15. Rfd1 f6 16. Bh2 g5 17. Nxe4 Bxe4 18. Nd2 Bg6 19. Re1 {1-0 (41) Makarov,M (2505)-Grinberg,I (2112) St Petersburg 2014}) 13... Be6 {[%emt 0:54:02]} ({Better is} 13... Rfe8 $11) 14. Bd3 {[%emt 0:57:21]} Nh7 {[%emt 0:53:56]} 15. Kd2 {[%emt 0:53:56]} Ndf6 {[%emt 0:49:24]} 16. Nf3 {[%emt 0:49:24]} Rad8 {[%emt 0:35:10]} 17. Rag1 {[%emt 0:21:50]} Bc8 {[%emt 0:47:57]} 18. Kc2 {[%emt 0:18:35]} Rde8 {[%emt 0:31:38]} 19. Bc7 {[%emt 0:15:19]} Bd7 {[%emt 0:21:36]} 20. Bh2 {[%emt 0:21:36]} Bc8 {[%emt 0:20:39]} 21. Bc7 {[%emt 0:20:39]} Bd7 {[%emt 0:12:31]} 22. Bh2 {[%emt 0:12:14]} Bc8 {[%emt 0:21:04]} 23. Nd2 {[%emt 0:10:01]} Nd7 {[%emt 0:13:07]} 24. f4 {[%emt 0:10:18]} f5 {[%emt 0:12:49]} 25. g4 {[%emt 0:09:41]} hxg4 {[%emt 0:12:56]} 26. hxg4 {[%emt 0:10:05]} Ndf6 {[%emt 0:11:39]} 27. gxf5 {[%emt 0:06:52]} Bxf5 {[%emt 0:12:00]} 28. Nf3 {[%emt 0:05:19]} Ng4 {[%emt 0:11:18]} 29. Nd1 {[%emt 0:05:48]} Nhf6 {[%emt 0:05:48]} 30. Nh4 {[%emt 0:04:44]} Bxd3+ {[%emt 0:05:19]} 31. Kxd3 {[%emt 0:05:19]} Kf7 {[%emt 0:05:10]} 32. Nf3 {[%emt 0:03:35]} Rh8 {[%emt 0:05:12]} 33. Ng5+ {[%emt 0:03:51]} Kg8 {[%emt 0:05:25]} 34. Bg3 {[%emt 0:04:15]} Rh5 {[%emt 0:01:55]} 35. Nf2 {[%emt 0:02:36]} ({Better is} 35. Bh4 $14) 35... Nh6 {[%emt 0:02:36]} 36. Nfh3 {[%emt 0:01:41]} Nf5 {[%emt 0:01:38]} 37. Be1 {[%emt 0:01:38]} Bh6 {[%emt 0:01:13]} 38. Nf3 {[%emt 0:00:18]} Kh7 {[%emt 0:00:27]} 39. Nf2 {[%emt 0:00:12]} Rxh1 {[%emt 0:00:12]} 40. Rxh1 {[%emt 0:00:25]} Kg7 {[%emt 0:00:11]} 41. Ne5 {[%emt 0:00:11]} Rg8 {[%emt 0:27:00]} 42. Nfg4 {[%emt 0:12:45]} Ne4 {[%emt 0:12:45]} 43. Bh4 {[%emt 0:06:46]} Rh8 {[%emt 0:20:03]} 44. Be1 {[%emt 0:05:38]} Rg8 {[%emt 0:14:05]} 45. Nf3 {[%emt 0:05:36]} Rh8 {[%emt 0:11:13]} 46. Bh4 {[%emt 0:04:24]} (46. Rg1 $16) 46... Nf6 {[%emt 0:08:34]} (46... Kg8 $11) 47. Nf2 {[%emt 0:03:44]} (47. Nge5 $16) 47... Rg8 {[%emt 0:04:31]} 48. Bg5 {[%emt 0:02:32]} Rh8 {[%emt 0:02:32]} 49. Bxh6+ {[%emt 0:03:28]} Rxh6 {[%emt 0:03:28]} 50. Rxh6 {[%emt 0:03:57]} Kxh6 {[%emt 0:03:57]} 51. Ng5 {[%emt 0:03:28]} Ng7 {[%emt 0:03:23]} 52. Nf7+ {[%emt 0:03:23]} Kh5 {[%emt 0:03:05]} 53. Nd8 {[%emt 0:03:57]} Kh4 {[%emt 0:02:29]} 54. Nxb7 {[%emt 0:03:41]} Ne6 {[%emt 0:02:52] [#]} 55. Na5 {[%emt 0:03:21]} ({White should play} 55. Ke2 $1 $18) 55... Kg3 {[%emt 0:02:48]} (55... Nd8 $142) 56. Ke2 {[%emt 0:02:48]} ({Stronger than} 56. Nxc6 Kxf2 57. Nxe7 g5 58. fxg5 Nxg5 $11) 56... Nd8 {[%emt 0:02:43]} 57. Nd3 {[%emt 0:03:42]} Ng4 $2 {[%emt 0:02:28] [#]} (57... Nd7 58. Ne1 Kg4) 58. b5 $1 {[%emt 0:03:48]} axb5 {[%emt 0:02:44]} (58... cxb5 {was necessary.} 59. Nb4 Nf6) 59. Nb4 {[%emt 0:04:17]} Nh6 {[%emt 0:04:17]} 60. Naxc6 $18 {[%emt 0:04:35]} Nxc6 {[%emt 0:01:32]} 61. Nxc6 {[%emt 0:05:03]} Nf5 {[%emt 0:01:46]} 62. Ne5 {[%emt 0:01:46]} 1-0